lending/lending_fUSD_20250516
["ID","MTS","AMOUNT","RATE_DAILY","PERIOD"]
[361229194,1747366241264,-555.16686085,0.0001299,2]
[361229195,1747366241273,-555.16686085,0.0001299,2]
[361229196,1747366241282,-555.16686085,0.0001299,2]
[361229197,1747366241293,-1157.0073843,0.00012998,2]
[361229198,1747366241302,-308.39849468,0.00012999,2]
[361229199,1747366241311,-300.0,0.00012999,2]
[361229200,1747366241320,-73383.43699372,0.00012999,2]
[361229201,1747366241330,-308.54629882,0.00012999,2]
[361229202,1747366241339,-262.57327894,0.00012999,2]
[361229203,1747366241349,-284056.10151284,0.00012999,2]
[361229204,1747366241374,-55543.07436588,0.00012999,2]
[361229205,1747366241412,-191.5296057,0.000129,2]
[361229206,1747366241421,-4409.6203943,0.00012999,2]
[361229207,1747366241432,-20239.43482497,0.00012999,2]
[361229208,1747366242700,-562.6023957,0.00012999,2]
[361229209,1747366242770,-942.316296,0.00012999,2]
[361229222,1747366245616,-13333.55929434,0.00012999,2]
[361229223,1747366245989,-26310.52,0.00012999,2]
[361229224,1747366370216,459.7756435,0.00027397,120]
[361229225,1747366468541,150.0,0.0001228,7]
[361229228,1747366584108,314.0,0.00027397,120]
[361229229,1747366629744,-206.2065309,0.00010374,2]
[361229230,1747366631953,-277.00028035,0.00010374,2]
[361229231,1747366634461,-261.44487165,0.00010374,2]
[361229232,1747366637957,-206.2065309,0.00010374,2]
[361229233,1747366640412,-169.41137241,0.00010374,2]
[361229234,1747366642201,-296.60041379,0.00010374,2]
[361229235,1747366675051,563.82,0.000273,120]
[361229236,1747366958523,197.0,0.000273,120]
[361229237,1747367085669,500.0,0.00025,90]
[361229238,1747367153820,518.0,0.00025,90]
[361229241,1747367244226,-291.93096179,0.00011815,2]
[361229245,1747367432023,-277.8417361,0.00011793,2]
[361229247,1747367432035,-556.17,0.00011793,2]
[361229269,1747367437808,-866.43131578,0.00011793,2]
[361229270,1747367437846,-92.92977312,0.00011793,2]
[361229271,1747367437856,-200.0,0.00011853,2]
[361229272,1747367437865,-200.0,0.0001189,2]
[361229273,1747367437874,-8.08894394,0.00011918,2]
[361229274,1747367437932,-191.91105606,0.00011918,2]
[361229275,1747367437941,-250.0,0.00011945,2]
[361229276,1747367437951,-169.31343352,0.0001195,2]
[361229277,1747367437960,-542.23514859,0.00011975,2]
[361229281,1747367439820,-81.22485141,0.00011975,2]
[361229282,1747367439830,-185.13,0.00011995,2]
[361229283,1747367439840,-1200.0,0.0001205,2]
[361229284,1747367439849,-300.0,0.00012051,2]
[361229285,1747367439859,-3982.09474988,0.00012052,2]
[361229286,1747367440029,-2277.9884494,0.00012052,2]
[361229287,1747367440084,-764.745945,0.00012052,2]
[361229288,1747367440137,-919.39818052,0.00012052,2]
[361229289,1747367440149,-913.76378646,0.00012052,2]
[361229291,1747367440386,-7019.22431223,0.00012052,2]
[361229293,1747367443694,-451.57969937,0.00012052,2]
[361229298,1747367445631,-2487.79861121,0.00012052,2]
[361229300,1747367445686,-5083.40626593,0.00012052,2]
[361229301,1747367445695,-166.85,0.00012232,2]
[361229302,1747367445704,-1000.0,0.00012291,2]
[361229303,1747367445713,-311.2787164,0.00012319,2]
[361229304,1747367445741,-194.2712836,0.00012319,2]
[361229305,1747367445750,-207.4,0.00012349,2]
[361229306,1747367445759,-218.08891953,0.00012637,2]
[361229307,1747367445795,-1198.78108047,0.00012637,2]
[361229308,1747367445804,-799.0,0.000128,2]
[361229309,1747367445817,-919.0,0.000128,2]
[361229310,1747367445826,-556.919,0.000128,2]
[361229311,1747367445836,-588.661,0.000128,2]
[361229312,1747367445845,-1347.91570996,0.000128,2]
[361229313,1747367445953,-1322.0,0.000126,2]
[361229314,1747367445963,-110.08429004,0.000128,2]
[361229315,1747367445972,-154.0,0.000128,2]
[361229316,1747367445981,-4037.0,0.000128,2]
[361229317,1747367445992,-2294.55890392,0.000128,2]
[361229318,1747367446013,-934.78146705,0.000128,2]
[361229319,1747367446024,-3595.65962903,0.000128,2]
[361229320,1747367446034,-880.0,0.000128,2]
[361229321,1747367446043,-151.0,0.00012892,2]
[361229322,1747367446053,-221.27582536,0.00012892,2]
[361229323,1747367446062,-151.0,0.00012892,2]
[361229324,1747367446072,-668.65185757,0.00012892,2]
[361229325,1747367446081,-719.52358209,0.00012892,2]
[361229326,1747367446090,-200.0,0.00012892,2]
[361229327,1747367446099,-2715.364,0.00012896,2]
[361229328,1747367446109,-170.306,0.00012896,2]
[361229329,1747367446118,-1000.0,0.000129,2]
[361229330,1747367446127,-154.04352596,0.000129,2]
[361229331,1747367446136,-36726.10683224,0.000129,2]
[361229332,1747367446148,-897.40698998,0.000129,2]
[361229334,1747367446168,-1116.14335463,0.000129,2]
[361229335,1747367446189,-2337.86112315,0.000129,2]
[361229336,1747367446198,-227.35203535,0.000129,2]
[361229337,1747367446208,-152.15584996,0.000129,2]
[361229338,1747367446217,-222.22405095,0.000129,2]
[361229340,1747367446227,-174.06211968,0.000129,2]
[361229342,1747367446239,-305.19905344,0.000129,2]
[361229344,1747367446249,-161.82074599,0.000129,2]
[361229346,1747367446259,-1490.8705975,0.00012934,2]
[361229348,1747367446268,-508.05217038,0.00012973,2]
[361229349,1747367446278,-170.23732972,0.00012973,2]
[361229352,1747367446288,-501.31029843,0.00012973,2]
[361229354,1747367446297,-178.2,0.00012974,2]
[361229356,1747367446307,-197.0,0.0001299,2]
[361229358,1747367446316,-197.0,0.0001299,3]
[361229360,1747367446325,-200.0,0.00012997,2]
[361229362,1747367446334,-23777.9,0.00012999,2]
[361229364,1747367446344,-500.0,0.00012999,2]
[361229365,1747367446353,-344.28928242,0.00012999,2]
[361229367,1747367446362,-71057.53711058,0.00013,2]
[361229370,1747367446374,-688.08525818,0.00013,2]
[361229372,1747367446385,-1873.14887,0.00013,2]
[361229388,1747367678223,150.0,0.000125,5]
[361229389,1747367775836,-234.19579424,0.00010363,2]
[361229390,1747367781822,-200.0,0.00010363,2]
[361229391,1747367783858,-252.86038133,0.00010363,2]
[361229392,1747367786021,-192.73622149,0.00010363,2]
[361229393,1747367788360,-170.55339718,0.00010363,2]
[361229394,1747367791368,-151.53640827,0.00010363,2]
[361229395,1747368006588,-210.1536223,0.0001,2]
[361229396,1747368012732,-215.95880197,0.0001,2]
[361229397,1747368015390,-23.88757573,0.0001,2]
[361229398,1747368142972,-192.07122624,0.00010018,2]
[361229399,1747368145448,-8.56065546,0.00010018,2]
[361229400,1747368245107,1471.86250427,0.000273,120]
[361229401,1747368285371,228.9404445,0.000273,120]
[361229403,1747368537616,150.0,0.00011772,7]
[361229404,1747368553326,-200.0,0.00010227,2]
[361229405,1747368553346,-200.0,0.00010272,2]
[361229406,1747368553366,-152.18779749,0.00010363,2]
[361229407,1747368553388,-181.69095353,0.00010842,2]
[361229410,1747368631934,-519.86839141,0.00010996,2]
[361229411,1747368631945,-389.30209059,0.00010996,2]
[361229412,1747368631954,-909.170482,0.00010998,2]
[361229413,1747368631963,-247.26558135,0.00010998,2]
[361229414,1747368631975,-661.90490065,0.00010998,2]
[361229415,1747368631985,-909.170482,0.00010998,2]
[361229416,1747368631995,-200.0,0.00011021,2]
[361229417,1747368632004,-200.0,0.00011199,2]
[361229418,1747368632014,-909.170482,0.0001127,2]
[361229419,1747368632023,-909.170482,0.00011272,2]
[361229420,1747368632033,-200.0,0.00011476,2]
[361229421,1747368632042,-909.170482,0.00011544,2]
[361229422,1747368632051,-909.170482,0.00011546,2]
[361229423,1747368632061,-767.686409,0.00011694,2]
[361229424,1747368632070,-501.0,0.00011753,2]
[361229425,1747368632080,-174.719782,0.00011793,2]
[361229426,1747368632089,-909.170482,0.00011818,2]
[361229427,1747368632099,-909.170482,0.0001182,2]
[361229428,1747368632108,-250.0,0.00011893,2]
[361229429,1747368632118,-200.0,0.00011926,2]
[361229430,1747368632127,-300.0,0.00011973,2]
[361229431,1747368632410,-1200.0,0.00011973,2]
[361229432,1747368632423,-300.0,0.00011973,2]
[361229433,1747368632434,-23900.0,0.00011974,2]
[361229435,1747368632443,-500.0,0.00012,2]
[361229436,1747368632452,-909.170482,0.00012092,2]
[361229437,1747368632462,-909.170482,0.00012094,2]
[361229438,1747368632472,-191.84,0.00012169,2]
[361229439,1747368632482,-500.0,0.00012438,2]
[361229440,1747368632491,-705.44,0.00012486,2]
[361229441,1747368632501,-207.4,0.00012492,2]
[361229442,1747368632510,-150.0,0.00012498,2]
[361229443,1747368632520,-150.0,0.00012498,2]
[361229444,1747368632529,-1354.07,0.00012626,2]
[361229445,1747368632539,-212.744,0.000127,2]
[361229446,1747368632548,-919.0,0.000127,2]
[361229447,1747368632558,-1135.127,0.00012784,2]
[361229448,1747368632567,-6825.0,0.00012784,2]
[361229450,1747368632576,-880.0,0.00012784,2]
[361229452,1747368632585,-154.0,0.00012784,2]
[361229454,1747368632595,-200.0,0.00012862,2]
[361229456,1747368632605,-152.51427846,0.00012862,2]
[361229458,1747368632614,-151.0,0.00012862,2]
[361229459,1747368632623,-749.35038584,0.00012862,2]
[361229460,1747368632632,-668.65185757,0.00012862,2]
[361229461,1747368632642,-154.1686952,0.00012862,2]
[361229462,1747368632651,-13189.49056973,0.0001287,2]
[361229463,1747368632660,-9820.8758,0.000129,2]
[361229464,1747368632669,-219.13726429,0.000129,2]
[361229465,1747368632678,-172.31840982,0.000129,2]
[361229466,1747368632689,-214.81658244,0.000129,2]
[361229467,1747368632698,-335.33657548,0.000129,2]
[361229468,1747368632707,-1000.0,0.00012901,2]
[361229469,1747368632716,-250.67670158,0.00012902,2]
[361229470,1747368632725,-665.97819395,0.00012934,2]
[361229471,1747368632738,-564.78830345,0.00012934,2]
[361229472,1747368632747,-158.54487047,0.00012973,2]
[361229473,1747368632783,-479.11857813,0.00012368,2]
[361229474,1747368632795,-430.05190387,0.00012368,2]
[361229475,1747368632804,-342.98522127,0.00012973,2]
[361229476,1747368632813,-153.99841584,0.00012999,2]
[361229477,1747368632823,-2172.292,0.00012999,2]
[361229478,1747368632833,-170.306,0.00012999,2]
[361229479,1747368632842,-15274.73442279,0.00012999,2]
[361229480,1747368632878,-494.7767235,0.00012999,2]
[361229492,1747368637881,-414.92975618,0.00012642,2]
[361229493,1747368637986,-494.24072582,0.00012642,2]
[361229494,1747368637996,-909.170482,0.00012916,2]
[361229495,1747368638005,-909.170482,0.00012997,2]
[361229496,1747368638015,-573.53577102,0.00012999,2]
[361229497,1747368638026,-335.63471098,0.00012999,2]
[361229498,1747368638037,-116079.13757464,0.00012999,2]
[361229499,1747368638067,-6891.37825609,0.00012999,2]
[361229500,1747368638149,-764.71614827,0.00012999,2]
[361229592,1747368640036,-861.29941923,0.0001299,2]
[361229593,1747368640048,-1185.77058077,0.0001299,2]
[361229594,1747368640057,-832.62941923,0.00012999,2]
[361229595,1747368640328,-520.8728803,0.00012999,2]
[361229596,1747368640354,-764.947,0.00012999,2]
[361229597,1747368640515,-1000.97685802,0.00012999,2]
[361229598,1747368640526,-66589.80328019,0.00012999,2]
[361229599,1747368640536,-217728.87151159,0.00013,2]
[361229600,1747368640547,-967.07159406,0.00013,2]
[361229601,1747368640581,-815.44000002,0.00013,2]
[361229602,1747368640912,-2421.15000765,0.00013,2]
[361229607,1747368642971,-5376.445856,0.00013,2]
[361229609,1747368643025,-7502.35497776,0.00013,2]
[361229610,1747368643037,-8846.81198358,0.00013,2]
[361229611,1747368643048,-31361.92882946,0.00013,2]
[361229612,1747368643060,-556.3898016,0.00013,2]
[361229613,1747368643072,-841.09078813,0.00013,2]
[361229614,1747368643083,-735.915,0.00013,2]
[361229615,1747368643100,-1015.86921439,0.00013,2]
[361229616,1747368643111,-7178.74776248,0.00013,2]
[361229617,1747368643123,-1165.30404382,0.00013,2]
[361229618,1747368643163,-783.72581846,0.00013,2]
[361229619,1747368643191,-8267.26780342,0.00013,2]
[361229620,1747368643202,-854.01624939,0.00013,2]
[361229621,1747368643217,-12817.6468411,0.00013,2]
[361229622,1747368643244,-1121.145,0.00013,2]
[361229623,1747368643255,-1707.54595519,0.00013,2]
[361229624,1747368643297,-6323.01184689,0.00013,2]
[361229625,1747368643351,-480.823,0.00013,2]
[361229626,1747368643363,-300.42878841,0.00013,2]
[361229628,1747368646016,-1484.73048015,0.00013,2]
[361229629,1747368646027,-129315.10808427,0.00013,2]
[361229630,1747368646038,-323.57617519,0.00013,2]
[361229631,1747368646069,-669.0,0.00013,2]
[361229632,1747368646123,-648.11864999,0.00013,2]
[361229633,1747368646178,-645.12208,0.00013,2]
[361229634,1747368646499,-282.78234949,0.00013,2]
[361229635,1747368646515,-1039.66749583,0.00013,2]
[361229636,1747368646526,-4744.79967454,0.00013,2]
[361230102,1747369083963,1294.44,9.901e-05,2]
[361230104,1747369401171,-163.47934454,0.0001,2]
[361230105,1747369405160,-12.7414676,0.0001,2]
[361230106,1747369405184,-200.0,0.00010932,2]
[361230107,1747369405207,-80.21717254,0.00011014,2]
[361230108,1747369410466,-119.78282746,0.00011014,2]
[361230109,1747369410488,-55.50445187,0.00011709,2]
[361230113,1747369616510,150.0,0.00011661,7]
[361230114,1747369644777,-183.22657256,0.00011622,2]
[361230115,1747369644800,-1166.88257571,0.00011677,2]
[361230126,1747369752321,-232.91950084,0.00010136,2]
[361230131,1747369829545,-172.04,0.0001,2]
[361230132,1747369831466,-166.59042292,0.0001,2]
[361230136,1747369832106,-111.36957708,0.0001,2]
[361230137,1747369832115,-111.88172037,0.00010136,2]
[361230138,1747369832124,-200.0,0.00010893,2]
[361230139,1747369832134,-200.0,0.0001115,2]
[361230140,1747369832143,-4247.62668385,0.000113,2]
[361230141,1747369832163,-35183.77473029,0.000113,2]
[361230142,1747369832380,-1879.70325975,0.000113,2]
[361230174,1747369840257,-2077.0,0.000113,2]
[361230175,1747369840268,-317.59731587,0.000113,2]
[361230176,1747369840618,-3018.40926546,0.000113,2]
[361230177,1747369840737,-23901.11874478,0.000113,2]
[361230178,1747369840746,-1000.0,0.00011533,2]
[361230179,1747369840756,-172.04,0.00011557,2]
[361230180,1747369840765,-176.330591,0.00011592,2]
[361230181,1747369840776,-250.0,0.0001165,2]
[361230182,1747369840786,-1200.0,0.00011676,2]
[361230183,1747369840795,-300.0,0.00011676,2]
[361230184,1747369840805,-300.0,0.00011676,2]
[361230185,1747369840814,-22733.11742429,0.00011677,2]
[361230186,1747369840824,-150.0,0.00011688,2]
[361230187,1747369840833,-150.0,0.00011688,2]
[361230188,1747369840843,-150.0,0.00011688,2]
[361230189,1747369840852,-150.0,0.00011688,2]
[361230190,1747369840861,-200.0,0.00011698,2]
[361230191,1747369840870,-250.0,0.00011722,2]
[361230192,1747369840879,-594.81,0.00011734,2]
[361230193,1747369840888,-1332.28,0.00011736,2]
[361230194,1747369840898,-164.86,0.00011736,2]
[361230195,1747369840907,-150.0,0.00011796,2]
[361230196,1747369840916,-150.0,0.00011904,2]
[361230197,1747369840925,-150.0,0.00011904,2]
[361230198,1747369840934,-500.0,0.00012,2]
[361230199,1747369840943,-150.0,0.00012012,2]
[361230200,1747369840953,-705.74,0.000121,2]
[361230201,1747369840962,-150.0,0.00012121,2]
[361230202,1747369840971,-150.0,0.00012121,2]
[361230203,1747369840981,-150.0,0.00012121,2]
[361230204,1747369840990,-1294.44,0.00012164,2]
[361230205,1747369841004,-183.22657255,0.000122,2]
[361230206,1747369841015,-300.0,0.000122,4]
[361230207,1747369841024,-150.0,0.00012229,2]
[361230208,1747369841034,-700.0,0.000123,4]
[361230209,1747369841043,-150.0,0.00012337,2]
[361230210,1747369841053,-150.0,0.00012337,2]
[361230211,1747369841062,-150.0,0.00012337,2]
[361230212,1747369841071,-207.4,0.00012349,2]
[361230213,1747369841081,-1100.0,0.000124,4]
[361230214,1747369841090,-150.0,0.00012445,2]
[361230215,1747369841099,-457.61,0.00012493,2]
[361230216,1747369841109,-150.0,0.00012498,2]
[361230217,1747369841118,-184.03132693,0.00012498,2]
[361230218,1747369841127,-1500.0,0.000125,4]
[361230219,1747369841136,-150.0,0.00012553,2]
[361230220,1747369841145,-150.0,0.00012553,2]
[361230221,1747369841155,-150.0,0.00012553,2]
[361230222,1747369841164,-1900.0,0.000126,4]
[361230223,1747369841173,-807.72338721,0.00012603,2]
[361230224,1747369841183,-325.06,0.00012609,2]
[361230225,1747369841192,-150.58,0.00012609,2]
[361230226,1747369841201,-452.8,0.00012609,2]
[361230227,1747369841211,-437.07,0.00012609,2]
[361230228,1747369841220,-150.0,0.00012609,2]
[361230229,1747369841231,-705.6,0.00012609,2]
[361230230,1747369841240,-150.87,0.00012609,2]
[361230231,1747369841249,-300.24,0.00012609,2]
[361230232,1747369841258,-150.0,0.00012609,2]
[361230233,1747369841267,-300.0,0.00012609,2]
[361230234,1747369841279,-300.0,0.00012609,2]
[361230235,1747369841288,-150.0,0.00012609,2]
[361230236,1747369841298,-150.0,0.00012662,2]
[361230237,1747369841307,-300.0,0.000127,4]
[361230238,1747369841316,-200.0,0.0001272,2]
[361230239,1747369841325,-150.0,0.0001277,2]
[361230240,1747369841334,-150.0,0.0001277,2]
[361230241,1747369841343,-183.22657255,0.00012778,2]
[361230242,1747369841353,-300.0,0.000128,4]
[361230243,1747369841363,-420.0,0.00012822,2]
[361230244,1747369841372,-420.0,0.00012822,2]
[361230245,1747369841381,-1680.0,0.00012844,2]
[361230246,1747369841391,-200.0,0.00012856,2]
[361230247,1747369841401,-250.0,0.00012856,2]
[361230248,1747369841410,-151.0,0.00012862,2]
[361230249,1747369841419,-200.0,0.00012862,2]
[361230250,1747369841428,-156.80306497,0.00012862,2]
[361230251,1747369841437,-152.51427846,0.00012862,2]
[361230252,1747369841447,-719.52358209,0.00012862,2]
[361230253,1747369841456,-155.0,0.00012862,2]
[361230254,1747369841465,-668.65185757,0.00012862,2]
[361230255,1747369841474,-151.0,0.00012862,2]
[361230256,1747369841483,-500.0,0.00012869,2]
[361230257,1747369841492,-500.0,0.00012869,2]
[361230258,1747369841502,-272.31406785,0.00012869,2]
[361230259,1747369841511,-290.83024007,0.00012869,2]
[361230260,1747369841520,-13189.49056973,0.0001287,2]
[361230261,1747369841530,-75667.94176043,0.0001287,2]
[361230262,1747369841540,-150.0,0.00012878,2]
[361230263,1747369841549,-250.0,0.0001288,2]
[361230264,1747369841559,-926.61973785,0.00012886,2]
[361230265,1747369841568,-500.0,0.00012896,2]
[361230266,1747369841577,-170.306,0.00012897,2]
[361230267,1747369841586,-2416.674,0.00012899,2]
[361230268,1747369841595,-31340.5838,0.000129,2]
[361230269,1747369841604,-364.4347,0.000129,2]
[361230270,1747369841613,-1000.0,0.000129,3]
[361230271,1747369841622,-1000.0,0.000129,3]
[361230272,1747369841631,-1027.0,0.000129,3]
[361230273,1747369841640,-1000.0,0.000129,4]
[361230274,1747369841649,-1000.0,0.000129,4]
[361230275,1747369841658,-1000.0,0.000129,3]
[361230276,1747369841667,-1000.0,0.000129,3]
[361230277,1747369841675,-1000.0,0.000129,2]
[361230278,1747369841684,-1000.0,0.000129,2]
[361230279,1747369841693,-1000.0,0.000129,2]
[361230280,1747369841702,-197.0,0.000129,2]
[361230281,1747369841712,-197.0,0.000129,2]
[361230282,1747369841721,-1001.0,0.000129,3]
[361230283,1747369841730,-1006.0,0.000129,3]
[361230284,1747369841739,-252.985255,0.000129,2]
[361230285,1747369841748,-722.03239752,0.000129,2]
[361230286,1747369841757,-300.0,0.000129,4]
[361230287,1747369841766,-240.4578193,0.000129,2]
[361230288,1747369841775,-171.7626735,0.000129,2]
[361230289,1747369841786,-179.5419,0.000129,2]
[361230290,1747369841796,-632.8827,0.000129,2]
[361230291,1747369841805,-1753.0,0.000129,2]
[361230292,1747369841815,-1657.70180395,0.000129,2]
[361230293,1747369841824,-575.84979543,0.000129,2]
[361230294,1747369841834,-199.21833684,0.000129,2]
[361230295,1747369841843,-1516.6745785,0.00012934,2]
[361230296,1747369841853,-164.26,0.00012963,2]
[361230297,1747369841863,-524.85252121,0.00012973,2]
[361230298,1747369841872,-500.0,0.00012973,2]
[361230299,1747369841882,-500.0,0.00012973,2]
[361230300,1747369841891,-502.29312686,0.00012973,2]
[361230301,1747369841900,-597.88312676,0.00012973,2]
[361230302,1747369841909,-500.0,0.00012973,2]
[361230303,1747369841919,-164.02089402,0.00012973,2]
[361230304,1747369841928,-500.36025155,0.00012973,2]
[361230305,1747369841938,-502.39777938,0.00012973,2]
[361230306,1747369841947,-501.21010304,0.00012973,2]
[361230307,1747369841956,-500.48558467,0.00012973,2]
[361230308,1747369841965,-503.28600546,0.00012973,2]
[361230309,1747369841974,-502.7761219,0.00012973,2]
[361230310,1747369841983,-503.24695632,0.00012973,2]
[361230311,1747369841993,-501.02205933,0.00012973,2]
[361230312,1747369842006,-501.28329626,0.00012973,2]
[361230313,1747369842015,-500.0,0.00012973,2]
[361230314,1747369842024,-1000.0,0.00012975,2]
[361230315,1747369842035,-159.06714231,0.00012986,2]
[361230316,1747369842044,-166.55938131,0.00012986,2]
[361230317,1747369842053,-156.88897032,0.00012986,2]
[361230318,1747369842063,-155.2187411,0.00012986,2]
[361230319,1747369842072,-350.0,0.00012987,2]
[361230320,1747369842081,-164.26,0.00012989,2]
[361230321,1747369842090,-164.26,0.0001299,2]
[361230322,1747369842099,-164.26,0.0001299,2]
[361230323,1747369842108,-164.26,0.0001299,2]
[361230324,1747369842118,-198.51,0.0001299,3]
[361230325,1747369842128,-555.16686085,0.0001299,2]
[361230326,1747369842138,-555.16686085,0.0001299,2]
[361230327,1747369842149,-555.16686085,0.0001299,2]
[361230328,1747369842158,-500.0,0.00012992,2]
[361230329,1747369842167,-1157.0073843,0.00012998,2]
[361230330,1747369842177,-73383.43699372,0.00012999,2]
[361230331,1747369842186,-300.0,0.00012999,2]
[361230332,1747369842195,-262.57327894,0.00013,2]
[361230333,1747369842204,-211488.21830051,0.00013,2]
[361230334,1747369842233,-2554.7,0.00013,2]
[361230335,1747369842246,-740.80142255,0.00013,2]
[361230341,1747369843219,-15858.14389288,0.00013,2]
[361230342,1747369843543,-529.3941732,0.00013,2]
[361230344,1747369846395,-880.0,0.0001283,2]
[361230345,1747369846404,-4466.75047456,0.00013,2]
[361230346,1747369846416,-3628.99362848,0.00013,2]
[361230347,1747369846427,-10400.0,0.00013,2]
[361230348,1747369846438,-6688.244724,0.00013,2]
[361230349,1747369846449,-23574.69206185,0.00013,2]
[361230350,1747369846459,-63305.24127258,0.00013,2]
[361230351,1747369846559,-3450.13914992,0.00013,2]
[361230352,1747369846616,-1151.4223584,0.00013,2]
[361230354,1747369847479,-1643.06434359,0.00013,2]
[361230357,1747370417660,879.98210751,0.000131,13]
[361230360,1747370463602,299.999999,0.00025,30]
[361230365,1747370493409,-206.2065309,9.974e-05,2]
[361230366,1747370494884,-277.00028035,9.974e-05,2]
[361230367,1747370497465,-261.44487165,9.974e-05,2]
[361230368,1747370499329,-206.2065309,9.974e-05,2]
[361230369,1747370500467,-169.41137241,9.974e-05,2]
[361230370,1747370502026,-276.09041379,9.974e-05,2]
[361230371,1747370524091,999.0,0.00012,7]
[361230372,1747370807193,150.0,0.00012034,7]
[361230373,1747370844157,-291.930962,0.00011519,2]
[361230374,1747370844178,-139.33511217,0.00011578,2]
[361230376,1747370979517,845.52,0.00025,30]
[361230410,1747371031454,-676.3,0.0001148,2]
[361230412,1747371031463,-200.0,0.00011493,2]
[361230414,1747371031473,-274.83985883,0.00011507,2]
[361230416,1747371031482,-201.61437222,0.00011513,2]
[361230418,1747371031493,-137.01562778,0.00011513,2]
[361230420,1747371031503,-200.0,0.00011522,2]
[361230422,1747371031512,-62.98437222,0.00011533,2]
[361230426,1747371031573,-187.01562778,0.00011533,2]
[361230427,1747371031582,-60.66488783,0.00011578,2]
[361230428,1747371031591,-250.0,0.00011588,2]
[361230429,1747371031600,-1000.0,0.00011599,2]
[361230430,1747371031609,-1200.0,0.00011606,2]
[361230431,1747371031618,-16035.46044108,0.00011608,2]
[361230432,1747371031630,-919.3999996,0.00011608,2]
[361230433,1747371031738,-6945.13955932,0.00011608,2]
[361230434,1747371031747,-159.06714231,0.00011688,2]
[361230435,1747371031757,-166.55938131,0.00011688,2]
[361230436,1747371031766,-156.88897032,0.00011688,2]
[361230437,1747371031775,-155.21874109,0.00011688,2]
[361230438,1747371031784,-516.19,0.00011691,2]
[361230439,1747371031793,-157.1,0.00011814,2]
[361230440,1747371031804,-157.1,0.00011833,2]
[361230441,1747371031813,-157.1,0.00011853,2]
[361230442,1747371031823,-157.1,0.00011873,2]
[361230443,1747371031832,-249.65011805,0.000119,2]
[361230444,1747371031842,-700.74,0.00011933,2]
[361230445,1747371031851,-500.0,0.00011985,3]
[361230446,1747371031861,-409.9,0.00012034,2]
[361230447,1747371031870,-10764.3656657,0.00012129,2]
[361230448,1747371031879,-394.96,0.00012153,2]
[361230449,1747371031888,-1128.98,0.00012154,2]
[361230450,1747371031897,-249.65011786,0.0001221,2]
[361230451,1747371031907,-1396.36,0.00012238,2]
[361230452,1747371031916,-233.63,0.00012293,2]
[361230453,1747371031925,-207.4,0.00012349,2]
[361230454,1747371031934,-166.77,0.00012517,2]
[361230455,1747371031943,-249.65011786,0.00012521,2]
[361230456,1747371031952,-1157.33,0.00012541,2]
[361230457,1747371031962,-1179.91,0.00012541,2]
[361230458,1747371031971,-1157.33,0.00012541,2]
[361230459,1747371031989,-357.87,0.00012541,2]
[361230460,1747371031999,-200.0,0.00012628,2]
[361230461,1747371032008,-200.0,0.00012704,2]
[361230462,1747371032018,-250.0,0.00012704,2]
[361230463,1747371032028,-250.0,0.00012736,2]
[361230464,1747371032037,-1680.0,0.00012767,2]
[361230465,1747371032047,-249.65011786,0.00012831,2]
[361230466,1747371032057,-155.0,0.00012891,2]
[361230467,1747371032067,-719.52358209,0.00012891,2]
[361230468,1747371032076,-151.0,0.00012891,2]
[361230469,1747371032086,-668.65185757,0.00012891,2]